bitfinex/quotes_BTCUSD_20250110
["timestamp","ask_amount","ask_price","bid_price","bid_amount"]
[1736542261279,0.0010854,94876.0,94862.0,0.0468]
[1736542261280,0.00458136,94876.0,94862.0,0.0468]
[1736542261519,0.00458136,94876.0,94867.0,0.210821]
[1736542261728,0.00558136,94876.0,94875.0,0.007]
[1736542261942,0.00458136,94876.0,94875.0,0.002]
[1736542262121,0.00658136,94876.0,94867.0,0.210821]
[1736542262528,8.54e-05,94876.0,94867.0,0.210821]
[1736542262730,0.00449052,94875.0,94868.0,1.5]
[1736542262866,0.00449052,94875.0,94869.0,0.210817]
[1736542263096,0.0020854,94876.0,94873.0,0.0775]
[1736542263514,0.0020854,94876.0,94874.0,1.5]
[1736542264304,8.54e-05,94876.0,94874.0,1.5]
[1736542264450,0.002,94875.0,94874.0,1.5]
[1736542264686,0.2108874,94876.0,94874.0,1.5]
[1736542265074,0.00450295,94875.0,94874.0,1.5]
[1736542265890,0.00650295,94875.0,94874.0,1.5]
[1736542266540,0.42161,94874.0,94863.0,0.0775]
[1736542266895,0.00449687,94873.0,94864.0,0.210828]
[1736542268248,0.00449687,94873.0,94863.0,0.0775]
[1736542268249,0.00449687,94873.0,94865.0,0.00105403]
[1736542268470,0.00449687,94873.0,94870.0,0.210813]
[1736542268621,0.001,94873.0,94870.0,0.210813]
[1736542268822,0.00449439,94872.0,94870.0,0.210813]
[1736542269247,0.001,94873.0,94870.0,0.2396443]
[1736542269451,0.001,94873.0,94870.0,0.210813]
[1736542269633,0.00449518,94872.0,94870.0,0.210813]
[1736542270026,0.00449518,94872.0,94870.0,0.211813]
[1736542270229,0.001,94873.0,94871.0,1.5]
[1736542270429,8.54e-05,94876.0,94871.0,1.5]
[1736542270779,0.21081,94872.0,94871.0,1.5]
[1736542270994,0.15,94871.0,94870.0,0.001]
[1736542271530,0.00449578,94871.0,94860.0,1.50105409]
[1736542271731,0.00449578,94871.0,94861.0,0.00105402]
[1736542271934,0.210805,94874.0,94862.0,0.210831]
[1736542272141,8.54e-05,94876.0,94864.0,0.210828]
[1736542272370,8.54e-05,94876.0,94875.0,0.210803]
[1736542272570,8.54e-05,94876.0,94875.0,0.39650276]
[1736542272995,8.54e-05,94876.0,94875.0,1.89650276]
[1736542273810,8.54e-05,94876.0,94875.0,1.792203]
[1736542274012,8.54e-05,94876.0,94875.0,0.0814]
[1736542274219,8.54e-05,94876.0,94875.0,0.003]
[1736542274422,0.00459796,94876.0,94875.0,0.003]
[1736542274629,8.54e-05,94876.0,94875.0,0.003]
[1736542274836,0.00460414,94876.0,94875.0,0.003]
[1736542275044,0.00460414,94876.0,94868.0,1.5]
[1736542275253,0.0050854,94876.0,94875.0,0.002]
[1736542275664,0.0050854,94876.0,94869.0,0.210817]
[1736542276047,0.0050854,94876.0,94869.0,0.421634]
[1736542276245,0.0050854,94876.0,94869.0,0.210817]
[1736542276452,0.10429976,94875.0,94859.0,0.210838]
[1736542276651,0.210824,94866.0,94856.0,0.0785]
[1736542276854,0.15,94871.0,94852.0,0.0451]
[1736542277128,0.15,94871.0,94853.0,0.0334464]
[1736542277129,0.210833,94862.0,94853.0,0.0334464]
[1736542277332,0.210826,94865.0,94853.0,0.0334464]
[1736542277541,0.42616145,94861.0,94852.0,0.0451]
[1736542277769,0.210843,94858.0,94848.0,0.0785]
[1736542278189,0.00448137,94857.0,94848.0,0.0785]
[1736542278449,0.00448137,94857.0,94848.0,0.500224]
[1736542278709,0.00448137,94857.0,94848.0,0.0785]
[1736542278955,0.21083,94863.0,94850.0,0.210859]
[1736542279233,0.210842,94858.0,94853.0,0.001]
[1736542279456,0.212842,94858.0,94853.0,0.001]
[1736542279728,0.00428387,94857.0,94853.0,0.001]
[1736542280173,0.00428387,94857.0,94854.0,0.00105416]
[1736542280309,0.002,94863.0,94857.0,0.1]
[1736542280531,0.002,94863.0,94862.0,0.289732]
[1736542280932,0.002,94863.0,94862.0,1.94193176]
[1736542282218,0.2109428,94890.0,94875.0,0.210803]
[1736542282763,0.210774,94889.0,94875.0,0.210803]
[1736542283436,0.0001708,94890.0,94875.0,0.338303]
[1736542283567,0.0001708,94890.0,94875.0,0.4142954]
[1736542284174,0.0001708,94890.0,94875.0,1.9142954]
[1736542284311,0.0001708,94890.0,94875.0,2.01859516]
[1736542284725,0.0001708,94890.0,94875.0,2.11859516]
[1736542285189,0.0001708,94890.0,94875.0,2.39979886]
[1736542285391,0.0001708,94890.0,94875.0,2.43363155]
[1736542286243,0.0001708,94890.0,94889.0,0.441672]
[1736542286468,0.0001708,94890.0,94889.0,0.63229486]
[1736542286915,0.0001708,94890.0,94889.0,2.13229486]
[1736542288237,0.0011708,94890.0,94889.0,2.13929486]
[1736542289289,0.0011708,94890.0,94889.0,1.848672]
[1736542289462,0.0011708,94890.0,94889.0,0.348672]
[1736542289671,0.0011708,94890.0,94889.0,0.351672]
[1736542290125,0.0011708,94890.0,94889.0,1.851672]
[1736542290338,0.0011708,94890.0,94889.0,1.848672]
[1736542290549,0.0001708,94890.0,94889.0,1.844672]
[1736542290759,0.0001708,94890.0,94889.0,1.720772]
[1736542290977,0.0011708,94890.0,94889.0,0.01]
[1736542291195,0.32074004,94890.0,94889.0,0.01]
[1736542291622,0.32403582,94890.0,94889.0,0.003]
[1736542291834,0.42403582,94890.0,94889.0,0.003]
[1736542292043,0.48513582,94890.0,94889.0,0.003]
[1736542292249,0.59193582,94890.0,94889.0,0.003]
[1736542292430,0.1,94886.0,94854.0,1.5]
[1736542292727,0.210848,94855.0,94854.0,1.5]
[1736542293084,0.21515024,94855.0,94854.0,1.5]
[1736542293517,0.21515024,94855.0,94843.0,0.210874]
[1736542294148,0.21515024,94855.0,94854.0,0.001]
[1736542294345,0.21515024,94855.0,94854.0,0.002]
[1736542294588,0.21515024,94855.0,94854.0,0.001]
[1736542294816,0.21515024,94855.0,94844.0,1.5]
[1736542294982,0.21915024,94855.0,94844.0,1.5]
[1736542295203,0.214848,94855.0,94844.0,1.5]
[1736542295407,0.210848,94855.0,94845.0,0.21087]
[1736542295604,0.214848,94855.0,94845.0,0.21087]
[1736542296037,0.0042749,94854.0,94846.0,1.5]
[1736542296486,0.216848,94855.0,94846.0,1.5]
[1736542296687,0.006,94855.0,94846.0,1.5]
[1736542296914,0.002,94855.0,94847.0,0.00105425]
[1736542297147,0.006,94855.0,94850.0,0.210857]
[1736542297377,0.00427258,94854.0,94850.0,0.210857]
[1736542297588,0.004,94855.0,94838.0,0.0464]
[1736542297801,0.008,94855.0,94834.0,0.210894]
[1736542298013,0.001,94854.0,94834.0,0.210894]
[1736542298259,0.210863,94849.0,94835.0,0.210892]
[1736542298463,0.210863,94849.0,94835.0,0.421784]
[1736542298670,0.210873,94844.0,94835.0,0.210892]
[1736542298889,0.02151475,94844.0,94835.0,0.210892]
[1736542299069,0.00427059,94843.0,94835.0,0.421784]
[1736542299220,0.210862,94849.0,94835.0,0.210892]
[1736542299409,0.00426981,94842.0,94835.0,0.210892]
[1736542299606,0.210862,94849.0,94835.0,0.210892]
[1736542300021,0.00427445,94848.0,94835.0,0.210892]
[1736542300218,0.00427445,94848.0,94833.0,0.0828]
[1736542300219,0.04259945,94847.0,94839.0,1.5]
[1736542300472,0.15,94846.0,94831.0,8.53e-05]
[1736542300644,0.210892,94836.0,94831.0,8.53e-05]
[1736542300860,0.52608376,94836.0,94834.0,0.001]
[1736542301061,0.00427308,94835.0,94834.0,0.001]
[1736542301446,0.421788,94834.0,94831.0,8.53e-05]
[1736542301757,0.00424533,94833.0,94831.0,8.53e-05]
[1736542301965,0.210887,94838.0,94831.0,8.53e-05]
[1736542302165,0.004,94836.0,94831.0,8.53e-05]
[1736542302382,0.00424486,94835.0,94831.0,8.53e-05]
[1736542302578,0.210887,94838.0,94831.0,8.53e-05]
[1736542302795,0.002,94834.0,94831.0,8.53e-05]
[1736542303628,0.003,94834.0,94832.0,0.210899]
[1736542304025,0.002,94834.0,94832.0,0.210899]
[1736542304421,0.002,94834.0,94831.0,8.53e-05]
[1736542304422,0.001,94834.0,94833.0,1.5]
[1736542305038,0.0078,94863.0,94843.0,0.210873]
[1736542305376,0.210839,94859.0,94845.0,0.21087]
[1736542305603,0.00425968,94858.0,94849.0,0.210861]
[1736542306294,0.210834,94861.0,94849.0,0.210861]
[1736542306510,0.0042589,94857.0,94844.0,0.21087]
[1736542306715,0.10429976,94861.0,94844.0,0.21087]
[1736542307050,0.210848,94855.0,94844.0,0.21087]
[1736542307222,0.210848,94855.0,94843.0,0.210874]
[1736542307424,0.00426277,94854.0,94843.0,0.210874]
[1736542307630,0.15,94851.0,94835.0,0.0458]
[1736542307834,0.210874,94843.0,94835.0,0.0458]
[1736542307973,0.00425673,94850.0,94835.0,0.0458]
[1736542308173,0.210872,94845.0,94836.0,0.21089]
[1736542308560,0.00426638,94844.0,94843.0,0.001]
[1736542308766,0.00426638,94844.0,94836.0,0.21089]
[1736542308985,0.210872,94845.0,94836.0,0.21089]
[1736542309179,0.005,94843.0,94836.0,0.21089]
[1736542309394,0.005,94843.0,94836.0,0.42178]
[1736542309598,0.00425783,94842.0,94839.0,0.210881]
[1736542309801,0.005,94843.0,94840.0,0.00105426]
[1736542310134,0.005,94843.0,94840.0,1.50105426]
[1736542310503,0.002,94845.0,94844.0,0.210872]
[1736542310739,0.007,94845.0,94844.0,0.210872]
[1736542310958,0.00772,94870.0,94844.0,0.210872]
[1736542311160,0.210823,94867.0,94854.0,0.210848]
[1736542311373,0.210831,94863.0,94854.0,0.210848]
[1736542311729,0.0042589,94862.0,94854.0,0.210848]
[1736542311931,0.210844,94857.0,94855.0,1.5]
[1736542312141,0.10429976,94856.0,94844.0,0.002]
[1736542312346,0.00427811,94855.0,94834.0,0.0797]
[1736542312569,0.15,94853.0,94834.0,0.0797]
[1736542312772,0.210877,94842.0,94831.0,0.2109863]
[1736542313091,0.00426993,94841.0,94831.0,0.2109863]
[1736542314459,0.01026993,94841.0,94831.0,0.0010853]
[1736542314657,0.210895,94834.0,94831.0,8.53e-05]
[1736542314854,0.210883,94839.0,94831.0,0.0010853]
[1736542315134,0.00426839,94833.0,94831.0,0.0010853]
[1736542315357,0.210883,94839.0,94831.0,8.53e-05]
[1736542315578,0.00425641,94832.0,94831.0,0.0010853]
[1736542315776,0.210883,94839.0,94831.0,0.0010853]
[1736542316167,0.210888,94837.0,94831.0,0.0010853]
[1736542316364,0.001,94833.0,94831.0,0.0010853]
[1736542316595,0.0042524,94832.0,94831.0,0.0010853]
[1736542316981,0.0042524,94832.0,94831.0,8.53e-05]
[1736542317277,0.001,94833.0,94831.0,0.0010853]
[1736542317477,0.001,94833.0,94831.0,8.53e-05]
[1736542317633,0.0042524,94832.0,94831.0,8.53e-05]
[1736542317833,0.0082524,94832.0,94831.0,8.53e-05]
[1736542318045,0.004,94832.0,94831.0,8.53e-05]
[1736542318472,0.210883,94839.0,94831.0,8.53e-05]
[1736542318672,0.212883,94839.0,94831.0,8.53e-05]
[1736542318874,0.0042529,94838.0,94831.0,8.53e-05]
[1736542319296,0.004,94833.0,94831.0,8.53e-05]
[1736542319495,0.001,94832.0,94831.0,8.53e-05]
[1736542319713,0.00525082,94832.0,94831.0,8.53e-05]
[1736542320117,0.001,94832.0,94831.0,8.53e-05]
[1736542321135,0.216883,94839.0,94831.0,0.0010853]
[1736542321337,0.210892,94836.0,94831.0,8.53e-05]
[1736542321715,0.003,94832.0,94831.0,8.53e-05]
[1736542321921,0.210892,94836.0,94831.0,8.53e-05]
[1736542322386,0.001,94832.0,94831.0,0.0010853]
[1736542322517,0.001,94832.0,94831.0,8.53e-05]
[1736542322720,0.218587,94847.0,94831.0,0.00113967]
[1736542322922,0.21084,94859.0,94831.0,0.10543943]
[1736542323127,0.210832,94862.0,94845.0,0.1212]
[1736542323345,0.0042867,94861.0,94850.0,0.210857]
[1736542323631,0.210837,94860.0,94851.0,1.5]
[1736542323766,0.0042867,94861.0,94852.0,0.00105423]
[1736542323962,0.0042867,94861.0,94845.0,0.1212]
[1736542323963,0.01059594,94878.0,94863.0,0.210828]
[1736542324167,0.0259,94897.0,94846.0,0.00105415]
[1736542324168,0.00427402,94875.0,94864.0,0.00105409]
[1736542324378,0.09296814,94888.0,94869.0,0.210815]
[1736542324583,0.15,94886.0,94872.0,0.210809]
[1736542324789,0.00428329,94885.0,94883.0,0.210785]
[1736542325011,0.00428329,94885.0,94883.0,1.5]
[1736542325279,0.15,94886.0,94883.0,1.5]
[1736542325663,0.00428329,94885.0,94883.0,1.5]
[1736542326100,0.002,94885.0,94883.0,1.5]
[1736542326307,0.00428251,94884.0,94883.0,1.60429976]
[1736542326445,0.002,94885.0,94884.0,0.210783]
[1736542326849,0.002,94885.0,94883.0,1.5]
[1736542327270,0.008,94885.0,94883.0,0.001]
[1736542327686,0.00428897,94884.0,94873.0,0.210806]
[1736542328500,0.00428897,94884.0,94871.0,0.0493]
[1736542328709,0.008,94885.0,94883.0,0.001]
[1736542328919,0.008,94885.0,94877.0,0.210798]
[1736542328920,0.002,94885.0,94877.0,0.210798]
[1736542329122,0.00428587,94884.0,94877.0,0.210798]
[1736542329330,0.002,94884.0,94878.0,0.210796]
[1736542329502,0.00428394,94883.0,94871.0,0.0493]
[1736542329800,0.00428394,94883.0,94877.0,0.210799]
[1736542330013,0.210775,94888.0,94877.0,0.210799]
[1736542330223,0.007,94884.0,94877.0,0.210799]
[1736542330566,0.00428549,94883.0,94873.0,0.211808]
[1736542331013,0.00428549,94883.0,94873.0,0.210808]
[1736542331414,0.005,94883.0,94877.0,0.210798]
[1736542331633,0.0001708,94890.0,94877.0,0.0551303]
[1736542331958,0.002,94883.0,94880.0,0.210792]
[1736542332156,0.002,94883.0,94881.0,0.10535348]
[1736542332384,0.005,94883.0,94882.0,1.710788]
[1736542332588,0.005,94883.0,94882.0,1.81508776]
[1736542332701,0.006,94883.0,94882.0,1.81508776]
[1736542332901,0.006,94883.0,94882.0,1.710788]
[1736542333740,0.0001708,94890.0,94889.0,0.210772]
[1736542333992,0.0071708,94890.0,94889.0,0.210772]
[1736542334191,0.0001708,94890.0,94889.0,0.210772]
[1736542335907,0.0001708,94890.0,94883.0,0.210785]
[1736542336667,0.0001708,94890.0,94887.0,0.210776]
[1736542336847,0.0001708,94890.0,94884.0,0.210783]
[1736542337019,0.0011708,94890.0,94884.0,0.210783]
[1736542337229,0.0011708,94890.0,94884.0,0.421566]
[1736542337437,0.0001708,94890.0,94884.0,0.210783]
[1736542337632,0.0011708,94890.0,94884.0,0.210783]
[1736542338036,0.0011708,94890.0,94872.0,1.5]
[1736542338037,0.210772,94889.0,94872.0,1.5]
[1736542338237,0.0001708,94890.0,94882.0,0.210786]
[1736542338587,0.0011708,94890.0,94882.0,0.210786]
[1736542338881,0.00430567,94889.0,94882.0,0.210786]
[1736542339652,0.00430567,94889.0,94885.0,0.210779]
[1736542340297,0.00430567,94889.0,94872.0,1.5]
[1736542340496,0.00430567,94889.0,94873.0,0.20965331]
[1736542340728,0.00430567,94889.0,94882.0,0.001]
[1736542340926,0.0001708,94890.0,94884.0,0.210782]
[1736542341130,0.00430331,94888.0,94884.0,0.210782]
[1736542341336,0.001,94889.0,94888.0,0.210774]
[1736542341538,0.0001708,94890.0,94888.0,0.210774]
[1736542341745,0.003,94889.0,94888.0,0.210774]
[1736542342599,0.004,94889.0,94888.0,0.210774]
[1736542343112,0.003,94889.0,94888.0,0.210774]
[1736542343322,0.0001708,94890.0,94888.0,0.210774]
[1736542343540,0.001,94889.0,94888.0,0.210774]
[1736542343953,0.0001708,94890.0,94888.0,0.210774]
[1736542344260,0.002,94889.0,94888.0,0.210774]
[1736542345432,0.002,94889.0,94884.0,0.210782]
[1736542346076,0.002,94889.0,94877.0,0.210798]
[1736542346263,0.002,94889.0,94860.0,0.0488]
[1736542346264,0.10429976,94888.0,94860.0,0.0488]
[1736542346466,0.10429976,94888.0,94865.0,0.210825]
[1736542346467,0.210804,94875.0,94865.0,0.210825]
[1736542346671,0.01141506,94887.0,94871.0,0.210812]
[1736542346672,0.210787,94883.0,94871.0,0.210812]
[1736542346980,0.00431289,94874.0,94872.0,1.5]
[1736542347215,0.210794,94880.0,94872.0,1.5]
[1736542347342,0.220794,94880.0,94872.0,1.5]
[1736542347551,0.00431291,94879.0,94872.0,1.5]
[1736542347751,0.220794,94880.0,94872.0,1.5]
[1736542348173,0.00431291,94879.0,94873.0,0.210808]
[1736542348372,0.01,94880.0,94873.0,0.210808]
[1736542348721,0.210794,94879.0,94872.0,1.5]
[1736542349027,0.00430871,94878.0,94867.0,0.210819]
[1736542349235,0.00430871,94878.0,94870.0,0.210813]
[1736542349437,0.210807,94874.0,94867.0,1.5]
[1736542349666,0.00430871,94878.0,94867.0,1.5]
[1736542349881,0.210809,94873.0,94867.0,1.5]
[1736542350295,0.00430717,94872.0,94867.0,1.5]
[1736542350504,0.210812,94871.0,94867.0,1.5]
[1736542350677,0.421626,94871.0,94867.0,1.5]
[1736542351115,0.00429286,94870.0,94867.0,1.5]
[1736542351388,0.210817,94869.0,94867.0,1.5]
[1736542351593,0.00429458,94868.0,94859.0,0.210838]
[1736542351948,0.210817,94869.0,94860.0,1.5]
[1736542352374,0.210817,94869.0,94867.0,0.001]
[1736542352602,0.00428524,94868.0,94867.0,0.001]
[1736542352842,0.210811,94872.0,94867.0,0.001]
[1736542353112,0.00428678,94868.0,94867.0,0.001]
[1736542353279,0.005,94873.0,94867.0,0.001]
[1736542353481,0.00428369,94868.0,94862.0,0.210831]
[1736542353730,0.210803,94876.0,94866.0,0.210822]
[1736542353954,0.004,94868.0,94866.0,0.210822]
[1736542354166,0.212797,94878.0,94866.0,0.210822]
[1736542354680,0.00430725,94877.0,94876.0,0.183]
[1736542354831,0.09296814,94905.0,94889.0,0.293772]
[1736542355041,0.09296814,94905.0,94904.0,0.210739]
[1736542355824,7.812e-05,94908.0,94904.0,1.921478]
[1736542356618,7.812e-05,94908.0,94906.0,0.210734]
[1736542358745,7.812e-05,94908.0,94906.0,0.211734]
[1736542359256,7.812e-05,94908.0,94906.0,0.210734]
[1736542359389,7.812e-05,94908.0,94906.0,0.212734]
[1736542359596,7.812e-05,94908.0,94906.0,0.210734]
[1736542359804,7.812e-05,94908.0,94906.0,0.2739555]
[1736542360035,7.812e-05,94908.0,94906.0,1.7759555]
[1736542360234,7.812e-05,94908.0,94906.0,1.7789555]
[1736542360926,7.812e-05,94908.0,94906.0,0.2789555]
[1736542361110,7.812e-05,94908.0,94906.0,0.3582555]
[1736542361335,7.812e-05,94908.0,94906.0,0.3562555]
[1736542361532,7.812e-05,94908.0,94906.0,1.8532555]
[1736542361739,7.812e-05,94908.0,94906.0,1.8592555]
[1736542361935,7.812e-05,94908.0,94906.0,2.01185526]
[1736542362147,7.812e-05,94908.0,94906.0,2.00585526]
[1736542362343,0.0011708,94907.0,94906.0,2.01185526]
[1736542362578,0.0011708,94907.0,94906.0,2.01385526]
[1736542362863,0.0001708,94907.0,94906.0,2.00785526]
[1736542363079,0.0001708,94907.0,94906.0,2.00585526]
[1736542363273,0.0011708,94907.0,94906.0,2.01485526]
[1736542363526,0.0011708,94907.0,94906.0,2.02764155]
[1736542363744,0.0011708,94907.0,94906.0,2.37764155]
[1736542363956,7.812e-05,94908.0,94907.0,0.35]
[1736542364157,7.812e-05,94908.0,94907.0,0.63979402]
[1736542364571,7.812e-05,94908.0,94907.0,2.10702256]
[1736542365978,8.54e-05,94910.0,94909.0,0.35]
[1736542366166,8.54e-05,94910.0,94909.0,0.58049976]
[1736542366482,8.54e-05,94910.0,94909.0,0.60349976]
[1736542366684,8.54e-05,94910.0,94909.0,2.11508623]
[1736542368086,0.0010854,94910.0,94909.0,2.12408623]
[1736542368673,8.54e-05,94928.0,94916.0,0.1]
[1736542368985,8.54e-05,94928.0,94916.0,0.81526488]
[1736542369156,8.54e-05,94928.0,94916.0,0.89574476]
[1736542369966,8.54e-05,94928.0,94916.0,2.39774476]
[1736542370402,8.54e-05,94928.0,94916.0,2.37274476]
[1736542370841,8.54e-05,94928.0,94916.0,2.27274476]
[1736542371091,8.54e-05,94928.0,94920.0,0.560703]
[1736542371341,8.54e-05,94928.0,94920.0,0.72822426]
[1736542371580,8.54e-05,94928.0,94920.0,0.87272426]
[1736542372020,8.54e-05,94928.0,94926.0,0.68219]
[1736542372222,8.54e-05,94928.0,94926.0,0.78648976]
[1736542372474,8.54e-05,94928.0,94926.0,2.28648976]
[1736542372670,8.54e-05,94928.0,94926.0,2.36331256]
[1736542373277,8.53e-05,94946.0,94945.0,0.210648]
[1736542373449,8.53e-05,94946.0,94945.0,0.31494776]
[1736542373877,8.53e-05,94946.0,94945.0,1.81494776]
[1736542374551,8.53e-05,94946.0,94945.0,1.86254776]
[1736542374734,8.53e-05,94946.0,94945.0,1.87413423]
[1736542375476,8.53e-05,94946.0,94945.0,1.87713423]
[1736542375907,8.53e-05,94946.0,94945.0,1.87813423]
[1736542376561,8.53e-05,94946.0,94945.0,1.87713423]
[1736542376754,8.53e-05,94946.0,94945.0,1.87913423]
[1736542377584,0.210596,94969.0,94945.0,1.56418647]
[1736542377752,0.210597,94968.0,94954.0,0.210628]
[1736542378077,0.0058439,94967.0,94950.0,0.210635]
[1736542378426,0.210581,94975.0,94950.0,0.210635]
[1736542378654,0.2106,94967.0,94955.0,0.210624]
[1736542379108,0.00584032,94966.0,94954.0,0.001]
[1736542379275,0.210615,94960.0,94950.0,0.210636]
[1736542379476,0.10429976,94974.0,94945.0,1.72237538]
[1736542379477,0.210624,94956.0,94945.0,1.72237538]
[1736542379703,0.210624,94956.0,94950.0,0.001]
[1736542380143,0.0572,94965.0,94950.0,0.001]
[1736542380348,0.210633,94952.0,94950.0,0.001]
[1736542380581,0.10429976,94951.0,94950.0,0.001]
[1736542380785,0.11014437,94951.0,94950.0,0.001]
[1736542381234,0.11014437,94951.0,94931.0,1.5]
[1736542381235,0.21067,94936.0,94931.0,1.5]
[1736542381429,0.210676,94933.0,94931.0,1.5]
[1736542381877,0.00582778,94932.0,94931.0,1.5]
[1736542382041,0.00582778,94932.0,94907.0,0.0497]
[1736542382218,0.0572,94943.0,94922.0,0.210698]
[1736542382219,0.210671,94935.0,94922.0,0.210698]
[1736542382432,0.15,94950.0,94923.0,0.10535312]
[1736542382433,0.00582778,94934.0,94923.0,0.10535312]
[1736542382625,0.00768,94948.0,94923.0,0.10429976]
[1736542382921,0.001,94933.0,94924.0,0.210694]
[1736542383124,0.001,94932.0,94924.0,0.210694]
[1736542383547,0.001,94933.0,94923.0,0.210697]
[1736542383771,0.001,94933.0,94927.0,0.421374]
[1736542383947,0.001,94933.0,94923.0,0.001]
[1736542384188,0.01268,94948.0,94923.0,0.001]
[1736542384189,0.01268,94948.0,94928.0,0.10429976]
[1736542384364,0.210643,94947.0,94936.0,0.210667]
[1736542384567,0.005,94948.0,94936.0,0.0481]
[1736542384764,0.00579426,94946.0,94941.0,0.210655]
[1736542385092,0.210643,94947.0,94942.0,1.5]
[1736542385345,0.210652,94943.0,94942.0,1.5]
[1736542385552,0.210646,94946.0,94942.0,1.5]
[1736542385730,0.210657,94941.0,94924.0,0.0481]
[1736542385965,0.210674,94934.0,94924.0,0.210694]
[1736542386133,0.210674,94934.0,94925.0,1.5]
[1736542386550,0.00768,94945.0,94925.0,1.5]
[1736542386551,0.21069,94927.0,94925.0,1.5]
[1736542386896,0.00582466,94926.0,94925.0,1.5]
[1736542387726,0.00582466,94926.0,94916.0,0.210711]
[1736542388131,0.210692,94925.0,94916.0,0.210711]
[1736542388307,0.210685,94929.0,94916.0,0.210711]
[1736542388502,0.00582085,94924.0,94916.0,0.210711]
[1736542388698,0.006,94926.0,94916.0,0.210711]
[1736542388898,0.421342,94935.0,94925.0,0.001]
[1736542389135,0.15,94938.0,94925.0,0.001]
[1736542389480,0.210661,94939.0,94927.0,0.210688]
[1736542389680,0.210659,94941.0,94911.0,0.421446]
[1736542389897,0.210666,94937.0,94927.0,0.210686]
[1736542390082,0.210659,94941.0,94927.0,0.210686]
[1736542390083,0.210659,94941.0,94929.0,0.210683]
[1736542390896,0.210659,94941.0,94930.0,1.5]
[1736542391101,0.21065,94944.0,94930.0,1.5]
[1736542391303,0.210666,94937.0,94930.0,1.5]
[1736542391648,0.210663,94938.0,94930.0,1.5]
[1736542392057,0.210663,94938.0,94930.0,1.501]
[1736542392456,0.210674,94934.0,94930.0,1.5]
[1736542392665,0.210691,94926.0,94912.0,0.210719]
[1736542392890,0.210664,94938.0,94916.0,0.210712]
[1736542393087,0.210688,94928.0,94917.0,1.5]
[1736542393347,0.210695,94924.0,94917.0,1.5]
[1736542393644,0.421408,94920.0,94917.0,1.5]
[1736542394276,0.00581442,94919.0,94917.0,1.5]
[1736542394590,0.210708,94918.0,94917.0,1.5]
[1736542394820,0.00580917,94918.0,94917.0,1.5]
[1736542395038,0.212704,94920.0,94917.0,1.5]
[1736542395240,0.00580774,94919.0,94907.0,0.21073]
[1736542395447,0.00580774,94919.0,94910.0,0.210723]
[1736542395618,0.00880774,94919.0,94911.0,1.5]
[1736542395859,0.003,94919.0,94911.0,1.5]
[1736542396559,0.210708,94918.0,94905.0,0.210737]
[1736542396760,0.210708,94918.0,94909.0,0.210727]
[1736542396928,0.00577946,94917.0,94909.0,0.210727]
[1736542398897,0.01077946,94917.0,94909.0,0.210727]
[1736542399541,0.01277946,94917.0,94909.0,0.210727]
[1736542399970,0.01077946,94917.0,94905.0,0.210737]
[1736542400096,0.210712,94916.0,94910.0,1.5]
[1736542400302,0.210722,94912.0,94910.0,1.5]
[1736542400502,0.210749,94900.0,94887.0,0.0478]
[1736542400928,0.210743,94903.0,94888.0,1.710774]
[1736542401130,0.00576673,94899.0,94888.0,1.710774]
[1736542401355,0.210749,94900.0,94888.0,1.710774]
[1736542401736,0.267934,94906.0,94888.0,1.5]
[1736542401914,0.267934,94906.0,94887.0,0.002]
[1736542401915,0.10429976,94905.0,94887.0,0.002]
[1736542402117,0.11006013,94905.0,94884.0,0.210782]
[1736542402365,0.210752,94899.0,94884.0,0.210782]
[1736542402581,0.210752,94899.0,94885.0,1.5]
[1736542402721,0.210754,94897.0,94886.0,0.210779]
[1736542402934,0.210741,94903.0,94883.0,0.210785]
[1736542403134,0.00573995,94896.0,94884.0,0.00105379]
[1736542403346,0.31503076,94908.0,94893.0,0.210761]
[1736542403520,0.00572258,94895.0,94894.0,0.210761]
[1736542403720,0.31503076,94908.0,94894.0,0.210761]
[1736542403947,0.210647,94946.0,94560.0,0.0009]
[1736542403948,0.001,94897.0,94895.0,0.08345373]
[1736542404158,0.001,94897.0,94896.0,0.210757]
[1736542404359,0.003,94903.0,94902.0,0.210743]
[1736542404767,0.007,94908.0,94907.0,0.210732]
[1736542405043,0.218377,94923.0,94912.0,0.21072]
[1736542405467,0.210705,94920.0,94908.0,0.21073]
[1736542405836,0.00574623,94919.0,94908.0,0.21073]
[1736542406742,0.00574623,94919.0,94912.0,0.21072]
[1736542407181,0.210697,94923.0,94912.0,0.21072]
[1736542407380,0.210705,94920.0,94908.0,0.2528771]
[1736542407556,0.001,94919.0,94908.0,0.2528771]
[1736542407766,0.00674439,94919.0,94912.0,0.210721]
[1736542407930,0.01074439,94919.0,94912.0,0.210721]
[1736542408137,0.00974439,94919.0,94912.0,0.210721]
[1736542408334,0.00574439,94919.0,94908.0,0.21073]
[1736542409337,0.00574439,94919.0,94908.0,0.42146]
[1736542409533,0.00574439,94919.0,94910.0,0.210725]
[1736542410156,0.01074439,94919.0,94910.0,0.210725]
[1736542410353,0.01074439,94919.0,94913.0,0.421436]
[1736542410571,0.00974439,94919.0,94913.0,0.421436]
[1736542410771,0.01374439,94919.0,94913.0,0.421436]
[1736542410994,0.01474439,94919.0,94913.0,0.421436]
[1736542411167,0.01474439,94919.0,94913.0,0.210717]
[1736542411379,0.008,94919.0,94913.0,0.210717]
[1736542411581,0.210696,94924.0,94913.0,0.210717]
[1736542411799,0.00574194,94918.0,94914.0,1.5]
[1736542411978,0.001,94919.0,94914.0,1.5]
[1736542412180,0.001,94919.0,94913.0,0.210717]
[1736542412379,0.023,94916.0,94887.0,0.0824]
[1736542412579,0.210758,94896.0,94887.0,0.0824]
[1736542412804,0.00768,94902.0,94878.0,0.0825706]
[1736542413163,0.10429976,94901.0,94878.0,0.0825706]
[1736542413337,0.210781,94886.0,94878.0,0.0825706]